Cogmind - Beta 15 @@@ ROGUE MODE // 2025.05.09 @ 23:45:24 Player: RHAHI Result: Destroyed by 44-Z96(h) with Battle Rifle Performance ------------- Evolutions (0) 0 Regions Visited (2) 400 Robots Destroyed (21) 105 Value Destroyed (430) 430 Prototype IDs (0) 0 Alien Tech Used (0) 0 Bonus (-13) -13 TOTAL SCORE: 922 Bonus ------- Friendly Fire -13 Cogmind --------- Core Integrity 0/250 Matter 269/300 Energy 86/100 System Corruption 1% Temperature Cool (0) Movement Walking (120) Location -10/Subcaves Parts ------- > --- POWER (1) -------- (None) > --- PROPULSION (2) --- Aluminum Leg Improved Aluminum Leg > --- UTILITY (2) ------ Large Storage Unit Structural Scanner > --- WEAPON (2) ------- Mining Claw > --- INVENTORY (15) --- Aluminum Leg Aluminum Leg Heat Sink Medium Matter Pod (100) Sensor Array Seismic Detector Targeting Computer Targeting Computer Scrap Shield Hacking Suite Tractor Beam Small Laser Datajack Peak State ------------ > --- POWER ------------ Improved Ion Engine > --- PROPULSION ------- Improved Aluminum Leg Improved Aluminum Leg > --- UTILITY ---------- Small Storage Unit Seismic Detector > --- WEAPON ----------- Medium Laser Medium Laser > --- INVENTORY -------- Ion Engine Light Ion Engine Light Ion Engine Improved Aluminum Leg Improved Aluminum Leg Wheel Compact Wheel Mining Laser [Rating: 11] Favorites ----------- Power Light Ion Engine Engine Light Ion Engine Propulsion Improved Aluminum Leg Leg Improved Aluminum Leg Wheel Compact Wheel Utility Medium Storage Unit Device Seismic Detector Storage Medium Storage Unit Weapon Medium Laser Energy Gun Medium Laser Energy Cannon Beam Cannon Slashing Weapon Mining Claw Build | -11 -10 -10 ------- Run | Yrd Mat Sub Slots Evolved . | . . . Power . | . . . Propulsion . | . . . Utility . | . . . Weapon . | . . . Parts Attached 22 | 7 14 1 Power 4 | 1 3 . Engine 4 | 1 3 . Core . | . . . Reactor . | . . . Propulsion 8 | 2 6 . Treads . | . . . Leg 6 | . 6 . Wheel 2 | 2 . . Hover . | . . . Flight . | . . . Utility 5 | 2 2 1 Device 2 | 1 . 1 Storage 3 | 1 2 . Processor . | . . . Hackware . | . . . Protection . | . . . Artifact . | . . . Weapon 5 | 2 3 . Energy Gun 3 | 2 1 . Energy Cannon 1 | . 1 . Ballistic Gun . | . . . Ballistic Cannon . | . . . Launcher . | . . . Special Weapon . | . . . Impact Weapon . | . . . Slashing Weapon 1 | . 1 . Piercing Weapon . | . . . Special Melee Weapon . | . . . Unidentified Prototypes . | . . . Parts Lost 8 | . 7 1 Power 3 | . 3 . Propulsion 3 | . 3 . Utility 1 | . 1 . Weapon 1 | . . 1 Highest Loss Streak 3 | . 3 1 To Critical Strikes 1 | . . 1 Average Backups 9 | 3 9 13 Power . | . . . Propulsion 1 | 2 1 2 Utility 4 | . 4 9 Weapon 1 | . 1 1 Tool/Special . | . . . Unused Backups 18 | . 7 11 Power . | . . . Propulsion 6 | . 5 1 Utility 9 | . . 9 Weapon 2 | . 2 . Tool/Special 1 | . . 1 Average Slot Usage (%) 96 | . 98 79 Engine 11 | . 13 . Leg 26 | . 26 28 Device 5 | . 5 4 Storage 22 | . 22 23 Energy Gun 17 | . 18 8 Energy Cannon 5 | . 5 . Slashing Weapon 4 | . 3 14 Peak Build Rating 11 | 7 11 8 Average Rating 9 | 5 9 7 On Entrance 5 | . 7 8 Naked Turns . | . . . Heaviest Build 38 | 15 38 34 Greatest Support 26 | 26 26 23 Greatest Overweight (x) 4 | 4 2 1 Average Overweight (x) . | 1 . . Largest Inventory Capacity 15 | 8 15 15 Average Capacity 12 | 7 13 15 Most Carried 15 | 8 14 15 Average Carried 9 | 3 9 14 Final Capacity 15 | 8 15 15 Final Carried 14 | 8 13 14 Class Distribution -------------------- 100% | Mutant Dominant Class ---------------- Mutant | -10/Materials Mutant | -10/Subcaves Resources | -11 -10 -10 ----------- Run | Yrd Mat Sub Matter Collected 479 | 270 209 . Remotely . | . . . Salvage Created 741 | 123 618 . Parts 35 | 11 24 . Haulers Intercepted 1 | . 1 . Recyclers Shooed 1 | . 1 . Parts Field Recycled . | . . . Retrieved Matter . | . . . Parts Self-Destructed . | . . . Prevented . | . . . Kills | -11 -10 -10 ------- Run | Yrd Mat Sub Combat Hostiles Destroyed 12 | . 12 . Melee 2 | . 2 . Guns 3 | . 3 . Cannons 5 | . 5 . Classes Destroyed 8 | 2 6 . Worker 1 | . 1 . Tunneler 3 | 3 . . Hauler 1 | . 1 . Recycler 2 | 1 1 . Operator 1 | . 1 . Watcher 1 | . 1 . Swarmer 3 | . 3 . Grunt 9 | . 9 . Best Kill Streak 6 | 2 6 . Combat Bots Only 6 | . 6 . Max Kills in Single Turn 1 | 1 1 . Gunslinging . | . . . Exploded . | . . . Melee 1 | . 1 . Uniques/NPCs Destroyed . | . . . Combat | -11 -10 -10 -------- Run | Yrd Mat Sub Hostile Shots Fired 139 | . 137 2 Missed 44 | . 43 1 Hits 95 | . 94 1 Projectile 95 | . 94 1 Critical Strikes 2 | . 1 1 Damage Taken 1195 | . 1048 147 Core 262 | . 220 42 Absorbed by Shields . | . . . Core Remaining (%) 100 | 100 . . Volleys Fired 70 | 15 54 1 Largest 2 | 2 2 1 Hottest 110 | 100 110 50 Shots Fired 126 | 30 94 2 Gun 90 | 30 58 2 Cannon 36 | . 36 . Launcher . | . . . Special . | . . . Kinetic . | . . . Thermal 126 | 30 94 2 Explosive . | . . . Electromagnetic . | . . . Robot Hit Streak 9 | 5 9 4 Robot Miss Streak 5 | 4 5 . Penetration Max . | . . . Secondary Targets . | . . . Shots Hit Robots 83 | 15 66 2 Core Hits 31 | 5 25 1 Critical Kills 2 | . 2 . Critical Parts Destroyed . | . . . Critical Strikes 4 | 1 3 . Burn 2 | 1 1 . Meltdown 2 | . 2 . Melee Attacks 12 | . 12 . Impact . | . . . Slashing 12 | . 12 . Piercing . | . . . Sneak Attacks 1 | . 1 . Combat Hostiles . | . . . Follow-up Attacks . | . . . Damage Inflicted 1282 | 199 1058 25 Guns 669 | 199 445 25 Cannons 465 | . 465 . Explosions . | . . . Melee 148 | . 148 . Ramming . | . . . Kinetic . | . . . Thermal 1134 | 199 910 25 Explosive . | . . . Electromagnetic . | . . . Impact . | . . . Slashing 148 | . 148 . Piercing . | . . . Highest Corruption 1 | . 1 1 Average Corruption 1 | . 1 1 Corruption Purged . | . . . Corruption Blocked . | . . . Effects 5 | . 1 4 Message Errors 1 | . . 1 Matter Fused 2 | . 1 1 Heat Flow Errors 1 | . . 1 Misfires 1 | . . 1 Overload Shots . | . . . Overflow Damage . | . . . Projectiles . | . . . Explosions . | . . . Melee . | . . . Knockbacks . | . . . Impact . | . . . Kinetic . | . . . Secondary . | . . . Self-Inflicted Damage . | . . . Shots . | . . . Rammed . | . . . Targets Rammed . | . . . Kicked . | . . . Crushed . | . . . Highest Temperature 417 | 168 417 93 Average Temperature 116 | 82 124 50 Received Heat Transfer 501 | . 492 9 Effects 3 | . 3 . Shutdowns 2 | . 2 . Matter Decay 1 | . 1 . Siege Activations . | . . . Martial Activations . | . . . Shielding Activations . | . . . Robots Disrupted . | . . . Combat Hostiles . | . . . Robots Corrupted . | . . . Combat Hostiles . | . . . Parts Fried . | . . . Impact Corruptions . | . . . Robots Melted 2 | . 2 . Combat Hostiles 2 | . 2 . Parts Melted 9 | 1 8 . Heat Transferred 3048 | 666 2308 74 Parts Sabotaged . | . . . Parts Stolen . | . . . Parts Stripped . | . . . Power Chain Reactions . | . . . Alert | -11 -10 -10 ------- Run | Yrd Mat Sub Maximum Alert Level . | . . . Low Security (%) 100 | 100 100 . Level 1 . | . . . Level 2 . | . . . Level 3 . | . . . Level 4 . | . . . Level 5 . | . . . High Security . | . . . Max Security . | . . . Peak Influence 87 | 10 87 . Initial . | . . . Average 26 | 1 30 . Influence Increases 417 | 20 397 . Destroy 0b10 Robot/C 240 | . 240 . Destroy 0b10 Robot/NC 45 | 20 25 . Destroy Leader 64 | . 64 . Successful Hack 21 | . 21 . Destroy Structure 2 | . 2 . Lose Combat Pursuer 45 | . 45 . Influence Decreases 417 | 20 389 8 Entered New Map 4 | . . 4 Time Decay 346 | 20 322 4 Lost Part 67 | . 67 . Squads Dispatched 4 | . 4 . Investigation 2 | . 2 . Extermination . | . . . Reinforcement 2 | . 2 . Assault . | . . . Garrison . | . . . Intercept . | . . . Searches Triggered . | . . . Construction Impeded . | . . . Haulers Reinforced . | . . . Active Scanning Responses . | . . . Cargo Convoy Interrupts . | . . . Stealth | -11 -10 -10 --------- Run | Yrd Mat Sub Distress Signals 1 | . 1 . Communications Jammed . | . . . Distress Signals . | . . . Times Spotted 32 | . 24 8 Peak Tracking Total 8 | . 7 8 Tactical Retreats 1 | . 1 . Traps | -11 -10 -10 ------- Run | Yrd Mat Sub Traps Triggered 4 | . 3 1 Indirectly . | . . . Trap Hack Attempts . | . . . Triggered . | . . . Disarmed . | . . . Reprogrammed . | . . . Reused . | . . . Traps Extracted . | . . . Installed . | . . . Triggered . | . . . Machines | -11 -10 -10 ---------- Run | Yrd Mat Sub Machines Disabled . | . . . Max in Single Turn . | . . . Machines Repaired . | . . . Machines Dismantled . | . . . Machines Sabotaged . | . . . Overloaded Fab Kills . | . . . Hacking | -11 -10 -10 --------- Run | Yrd Mat Sub Machines Accessed 6 | . 6 . Terminals 4 | . 4 . Fabricators . | . . . Repair Stations . | . . . Recycling Units 2 | . 2 . Scanalyzers . | . . . Garrison Access . | . . . Total Hacks 16 | . 16 . Successful 5 | . 5 . Failed 10 | . 10 . Catastrophic 3 | . 3 . Database Lockouts 1 | . 1 . Manual 7 | . 7 . Terminals 10 | . 10 . Fabricators . | . . . Repair Stations . | . . . Recycling Units 6 | . 6 . Scanalyzers . | . . . Garrison Access . | . . . Terminal Hacks 3 | . 3 . Robot Analysis 1 | . 1 . Recall Investigation 1 | . 1 . Recall Reinforcements 1 | . 1 . Fabricator Hacks . | . . . Repair Station Hacks . | . . . Recycling Unit Hacks 2 | . 2 . Report Inventory 2 | . 2 . Scanalyzer . | . . . Garrison Access Hacks . | . . . Unauthorized Hacks . | . . . Terminals . | . . . Fabricators . | . . . Repair Stations . | . . . Recycling Units . | . . . Scanalyzers . | . . . Garrison Access . | . . . Data Cores Recovered . | . . . Used . | . . . Hacking Detections 5 | . 5 . Full Trace Events 3 | . 3 . Feedback Events 1 | . 1 . Corruption 1 | . 1 . Feedback Blocked . | . . . Robot Schematics Acquired . | . . . Robots Built . | . . . Authchips . | . . . Time . | . . . Total Robot Build Rating . | . . . Part Schematics Acquired . | . . . Parts Built . | . . . Authchips . | . . . Time . | . . . Total Part Build Rating . | . . . Parts Repaired . | . . . Time . | . . . Parts Recycled . | . . . Recycled Matter . | . . . Retrieved Matter . | . . . Retrieved Components . | . . . Parts Scanalyzed . | . . . Part Schematics Acquired . | . . . Parts Damaged . | . . . Bothacking | -11 -10 -10 ------------ Run | Yrd Mat Sub Used RIF Installer . | . . . Robots Hacked . | . . . Non-combat . | . . . Combat . | . . . Robot Hacks Applied . | . . . Relay Couplers Released . | . . . Fabnet Peak Effective % . | . . . Robots Rewired . | . . . Allies Hacked . | . . . Hacks Repelled . | . . . Allies | -11 -10 -10 -------- Run | Yrd Mat Sub Total Allies . | . . . Largest Group . | . . . Highest-Rated Group . | . . . Highest-Rated Ally . | . . . Total Orders . | . . . Ally Attacks . | . . . Total Damage . | . . . Kills . | . . . Allies Corrupted . | . . . Allies Melted . | . . . Intel | -11 -10 -10 ------- Run | Yrd Mat Sub Active Infowar (turns) 443 | . 382 61 Structural 61 | . . 61 Seismic 382 | . 382 . Robot Analysis Total 1 | . 1 . Derelict Logs Recovered 1 | . . 1 Drone Launches . | . . . Drone Recoveries . | . . . Exploration | -11 -10 -10 ------------- Run | Yrd Mat Sub Turns Passed 1321 | 148 1015 158 Spaces Moved 633 | 63 475 95 Core 24 | 24 . . Treads . | . . . Legs 561 | . 466 95 Wheels 48 | 39 9 . Hover . | . . . Flight . | . . . Fastest Speed 50 | 50 90 120 Average Speed 158 | 134 161 158 Slowest Speed 260 | 250 260 190 Overloaded Moves . | . . . Propulsion Burnouts . | . . . Robots Hopped . | . . . Potential Cave-ins . | . . . Cave-ins Triggered . | . . . Exploration Rate (%) 29 | 6 73 10 Regions Visited 2 Branch Regions 1 Pre-discovered Areas 1 | . . 1 Known Exits Taken . | . . . Unknown Exits Taken 2 | 1 1 . Scrap Searched . | . . . Spaces Dug 1 | . 1 . Terrain Destroyed 1 | . 1 . Melee 1 | . 1 . Projectile . | . . . AOE . | . . . Terrain Rammed . | . . . Walls Destroyed . | . . . Machines Disabled . | . . . Actions | -11 -10 -10 --------- Run | Yrd Mat Sub Total 803 | 92 607 104 Wait 14 | . 12 2 Move 631 | 62 474 95 Hop . | . . . Pick Up 28 | 8 18 2 Fast Attach 12 | 7 5 . Attach 7 | . 6 1 Detach 4 | . 4 . Swap 8 | . 7 1 Drop 17 | . 15 2 Fire 70 | 15 54 1 Melee 12 | . 12 . Ram . | . . . Kick . | . . . Crush . | . . . Escape Stasis . | . . . Rewire . | . . . Trap . | . . . Miscellaneous . | . . . Route ------- -11/Scrapyard -10/Materials (discovered 2 exits: [*Mat] / [*Sub]) -10/Subcaves History --------- Turn | Location | Event 27 | -11/Scrapyard | Discovered new exit (range 15) 149 | -11/Scrapyard | Entered Materials 312 | -10/Materials | Build established: Mutant 595 | -10/Materials | Lost 3 parts (1p1n1u) 724 | -10/Materials | Discovered new exit (range 16) 734 | -10/Materials | Core integrity fell below 50% 746 | -10/Materials | Central database locked down 1021 | -10/Materials | Discovered new exit (range 15) 1151 | -10/Materials | Core integrity fell below 20% 1164 | -10/Materials | Entered Subcaves 1165 | -10/Subcaves | Approached by a straggling Scientist 1207 | -10/Subcaves | Learned location of Mines (-8) 1311 | -10/Subcaves | Ambushed by swarm of Subdwellers 1322 | -10/Subcaves | Destroyed by 44-Z96(h) with Battle Rifle Last Messages --------------- 01276_ Subatomizers dissect the Med. Storage Unit. 01283_ System corrupted: Matter fused (-6). 01300_ System corrupted: Heat flow error (+136). 01305_ Triggered Shrapnel Trap. 01305_ An expanding cloud of shrapnel blasts out in all directions. 01311_ 44-Z96(h): "The Subs are coming!" 01313_ 1G-DH9(R) emerges from the Twisted Machinery. KW-6AU(c): "I think it's somewhere northeast of here" 01318_ HV Slug penetrates Wall. 01319_ 5U-2GV(g): "Sorry we're late! Had another grouchy Sub to deal with. Who's the new fellow?" 01320_ 05-DY8(R) emerges from the Twisted Machinery. 01322_ Critical hit (Destroy). 01322_ Med. Laser destroyed. Map ----- +----------------------------------------------------+ | ??## ## ### #??????????????????????? | | ?### ! #### #??????????????????????? | | ?## ##### #??????????????????????? | | ?## ## ##??# ##??????????????????????? | | ?## ###### ##???##???????????????????????? | | ??# ##??### ###????????????????????????????? | | ??## #?#### #########??????????????????????? | | ???## #?#### ########??????????????????????? | | ???# #??## ##??????????????????????? | | ???# ???## # ###?????????????????????? | | ?## ???## #### ###?????????????????????? | | ?## ???#### #### ##?????????????????????? | | ### ??###### #####g ##?????????????????????? | | ## ###### ##### ###?????????????????????? | | ##### # #####g ######??????????????????? | | ???## "" ##### g ######??????????????????? | | ???###### "" ## ## "" "##??????????????????? | | ???######" " #"### ^ ##??????????????????? | | ???????##" "####### " ##??????????????????? | | ???????### "##### # ""###??????????????????? | | ??????? " ????## ### " ###??????????????????? | | ???????????????### # ######??????????????????? | | ???????????????" # ###" ######?????????????????? | | ????????????????"""" "" ###?????????????????? | | ????????????????"""""""" h ##?????????????????? | | ?????????????????? """"" @ % ##?????????????????? | | ??????????????????"""c ##R## ##?????????????????? | | ??????????????? " # #####?????????????????? | | ????????????? """ #####?????????????????? | | ????????????" ?""" ### % ##????????????????????? | | ??????????????? ###### "#????????????????????? | | ??????????????? ##########""#????????????????????? | | ??????????????? ####???## ""##???????????????????? | | ????????????????????????# ##???????????????????? | | ????????????????????????## ###???????????????????? | | ????????????????????????## ???????????????????? | | ?????????????????????????? ??????????????????????? | | ?????????????????????????? ??????????????????????? | | ?????????????????????????????????????????????????? | | ?????????????????????????????????????????????????? | | ?????????????????????????????????????????????????? | | ?????????????????????????????????????????????????? | | ?????????????????????????????????????????????????? | | ?????????????????????????????????????????????????? | | ?????????????????????????????????????????????????? | | ?????????????????????????????????????????????????? | | ?????????????????????????????????????????????????? | | ?????????????????????????????????????????????????? | | ?????????????????????????????????????????????????? | | ?????????????????????????????????????????????????? | +----------------------------------------------------+ Best States ------------- Heat Dissipation 25 Energy Generation 12 Energy Capacity 265 Matter Stores 300 Matter Capacity 300 Sight Range 16 Terrain Scan Density 10 Evasion (%) 55 Item Schematics ----------------- None Robot Schematics ------------------ None Fabricated ------------ Nothing Repaired ---------- Nothing Alien Tech Used ----------------- None Achievements -------------- None Challenges ------------ None Game ------ Seed DisassembledMiningDriver Manual? 0 Play Time 00:25:31 Cumulative 33.4 hours Start 2025.05.09 @ 23:20:59 End 2025.05.09 @ 23:45:24 Sessions 1 Manual Loads 0 Difficulty Rogue Special Mode None Game No. 10 Rogue 9 Adventurer 1 Explorer 0 Win Type - Total 0 Types 0/0/0/0/0/0/0/0/0/0 Lore% 13 Gallery% 24 Achievement% 29 Wizard Run 0 Options --------- Layout 1 ASCII 0 Keyboard 1 Movement Vi Keybinds 0 Fullscreen 2 Font 32/Terminus Map View 50x35 Zoom Use 0% Tactical HUD 1 Map Filters NONE Filters NONE Steam 1 RUN: c0f8ab6b-e7d3-4f46-bf1d-63893b37541c